bitfinex-derivatives/quotes_SOLF0:USTF0_20250818
["timestamp","ask_amount","ask_price","bid_price","bid_amount"]
[1755548929024,3.09,183.57,183.51,8.5867]
[1755548931832,3.09,183.57,183.5,3.14]
[1755548932019,3.09,183.6,183.5,3.14]
[1755548932219,3.92033167,183.59,183.5,3.14]
[1755548932423,3.92033167,183.58,183.53,5.4461]
[1755548932730,3.92033167,183.57,183.54,3.04]
[1755548933831,3.12,183.56,183.52,5.4463]
[1755548934130,50.0,183.61,183.49,3.81492731]
[1755548934439,3.12,183.58,183.54,3.04]
[1755548934729,3.92370061,183.57,183.54,3.04]
[1755548934931,3.12,183.58,183.54,3.04]
[1755548935131,3.92370061,183.57,183.54,3.04]
[1755548935331,3.12,183.58,183.54,3.04]
[1755548935531,3.9243182,183.57,183.54,3.04]
[1755548935830,3.12,183.58,183.54,3.04]
[1755548936131,3.9243182,183.57,183.54,3.04]
[1755548936329,3.12,183.58,183.54,8.4858]
[1755548936529,3.92474237,183.57,183.54,8.4858]
[1755548936731,3.12,183.58,183.54,8.4858]
[1755548936931,3.92474237,183.57,183.54,8.4858]
[1755548937134,3.12,183.58,183.54,8.4858]
[1755548937432,3.92518375,183.57,183.54,8.4858]
[1755548937632,3.92518375,183.56,183.54,3.04]
[1755548937828,3.12,183.56,183.53,8.486]
[1755548938032,3.12,183.56,183.53,3.04]
[1755548939337,3.12,183.56,183.53,3.07874544]
[1755548939534,3.16181992,183.56,183.53,5.48484544]
[1755548939838,3.16181992,183.56,183.53,8.52484544]
[1755548940037,3.16181992,183.56,183.54,3.04]
[1755548944243,3.12,183.55,183.53,0.03874544]
[1755548945044,0.04181992,183.56,183.53,0.03874544]
[1755548945239,3.12,183.54,183.53,0.03874544]
[1755548945438,7.04880327,183.54,183.53,0.03874544]
[1755548948844,12.00769846,183.54,183.37,375.28346014]
[1755548949043,8.34769846,183.53,183.42,3.81492731]
[1755548949245,3.12,183.51,183.43,3.04]
[1755548949442,3.92880327,183.5,183.43,3.04]
[1755548949649,3.92880327,183.49,183.43,3.04]
[1755548949850,3.92934631,183.48,183.43,3.04]
[1755548950053,3.92934631,183.48,183.42,3.81492731]
[1755548950054,3.12,183.48,183.44,3.04]
[1755548950250,3.15537909,183.48,183.44,3.04]
[1755548950450,3.15537909,183.48,183.43,3.04]
[1755548950856,3.15537909,183.48,183.42,3.81492731]
[1755548951056,3.15537909,183.48,183.45,3.04]
[1755548952858,0.03537909,183.48,183.45,3.81492731]
[1755548953052,0.03537909,183.48,183.47,3.04]
[1755548954251,0.03537909,183.48,183.47,8.4879]
[1755548956663,0.03537909,183.48,183.47,5.4479]
[1755548957148,0.03537909,183.48,183.47,8.4879]
[1755548960364,136.22,183.55,183.5,5.4467]
[1755548960664,3.12,183.55,183.49,3.04]
[1755548961458,3.12,183.55,183.51,8.4865]
[1755548961862,50.0,183.58,183.51,8.4865]
[1755548962162,3.12,183.54,183.51,8.4865]
[1755548963669,3.17,183.57,183.5,5.48205852]
[1755548963863,3.17,183.55,183.5,0.03515852]
[1755548964060,3.91493128,183.54,183.5,0.03515852]
[1755548964256,3.17,183.56,183.51,2.86]
[1755548964462,3.17,183.54,183.51,2.86]
[1755548964661,3.17,183.53,183.5,5.48205852]
[1755548965061,3.17,183.52,183.5,5.48205852]
[1755548969270,3.17,183.52,183.5,0.03515852]
[1755548971263,3.17,183.52,183.5,2.89515852]
[1755548971460,50.0,183.58,183.5,8.34215852]
[1755548971670,8.32662326,183.57,183.5,8.34215852]
[1755548971873,3.17,183.53,183.5,8.34215852]
[1755548972573,3.17,183.57,183.5,2.89515852]
[1755548972870,3.918115,183.56,183.5,2.89515852]
[1755548973064,3.918115,183.55,183.5,0.03515852]
[1755548973264,3.17,183.55,183.52,8.3062]
[1755548975278,50.0,183.58,183.5,0.03515852]
[1755548975573,7.08875921,183.57,183.53,2.86]
[1755548975774,3.91875921,183.56,183.53,2.86]
[1755548976170,3.17,183.57,183.54,5.4456]
[1755548976379,3.17,183.57,183.54,8.3056]
[1755548976573,50.0,183.58,183.52,3.81492731]
[1755548976775,50.0,183.58,183.56,2.86]
[1755548976979,133.12,183.6,183.56,2.86]
[1755548977173,7.08770439,183.59,183.56,2.86]
[1755548977373,3.17,183.59,183.56,2.86]
[1755548977776,3.17,183.59,183.56,8.3051]
[1755548979177,3.17,183.59,183.57,5.4449]
[1755548979482,133.12,183.6,183.56,2.86]
[1755548979681,3.17,183.62,183.58,5.4445]
[1755548979883,7.08558135,183.61,183.58,8.3045]
[1755548980183,3.17,183.61,183.58,8.3045]
[1755548981277,3.17,183.61,183.58,8.33982273]
[1755548982688,366.02,183.64,183.58,8.33982273]
[1755548982888,3.17,183.61,183.58,8.33982273]
[1755548983583,3.17,183.61,183.59,5.4443]
[1755548984590,3.17,183.61,183.58,8.33982273]
[1755548986090,3.17,183.61,183.59,5.4443]
[1755548987193,3.17,183.61,183.59,8.3043]
[1755548988694,3.17,183.61,183.58,8.33982273]
[1755548992798,3.17,183.61,183.59,8.5043]
[1755548994100,3.17,183.61,183.59,3.06]
[1755548994394,3.17,183.61,183.58,5.47982273]
[1755548994701,3.17,183.61,183.58,8.53982273]
[1755548995600,3.17,183.61,183.59,3.06]
[1755548997002,133.08,183.65,183.58,3.85025004]
[1755548997207,133.08,183.65,183.59,3.06]
[1755548997703,133.08,183.65,183.58,3.85025004]
[1755548997704,3.07,183.64,183.58,3.85025004]
[1755548997906,3.07,183.64,183.62,3.06]
[1755549000700,136.15,183.65,183.62,3.06]
[1755549001307,3.07,183.64,183.62,3.06]
[1755549002309,3.07,183.64,183.63,2.43429392]
[1755549003510,133.08,183.65,183.63,2.43429392]
[1755549003801,53.07,183.67,183.63,2.43429392]
[1755549004005,53.07,183.67,183.65,2.43429392]
[1755549004211,133.0,183.68,183.66,3.06]
[1755549004507,133.0,183.68,183.64,3.8019199]
[1755549004696,133.0,183.68,183.66,3.06]
[1755549006010,133.0,183.68,183.66,8.5022]
[1755549006406,136.07,183.68,183.66,3.06]
[1755549008815,133.0,183.68,183.64,3.8019199]
[1755549009008,3.07,183.67,183.64,3.8019199]
[1755549009314,133.0,183.68,183.64,3.8019199]
[1755549009315,3.07,183.66,183.64,3.8019199]
[1755549010609,136.07,183.68,183.65,3.06]
[1755549010808,3.07,183.67,183.65,3.06]
[1755549011010,133.0,183.68,183.65,3.06]
[1755549011311,3.07,183.67,183.65,3.06]
[1755549011514,3.07,183.66,183.64,3.8019199]
[1755549012012,3.07,183.67,183.61,9.2456199]
[1755549013216,3.07,183.66,183.63,3.06]
[1755549013512,3.07,183.66,183.64,3.06]
[1755549013904,3.07,183.65,183.58,3.06]
[1755549014103,3.07,183.65,183.58,6.8619199]
[1755549014518,3.07,183.65,183.59,5.4442]
[1755549015621,133.0,183.68,183.6,5.444]
[1755549015822,136.07,183.68,183.61,6.8619199]
[1755549016211,136.07,183.68,183.61,12.3056199]
[1755549016408,3.90378153,183.67,183.61,12.3056199]
[1755549016612,136.07,183.68,183.61,12.3056199]
[1755549016811,3.90378153,183.67,183.61,12.3056199]
[1755549017012,136.07,183.68,183.61,12.3056199]
[1755549017218,3.90382816,183.67,183.61,12.3056199]
[1755549017420,136.07,183.68,183.61,12.3056199]
[1755549017718,3.90530796,183.67,183.61,12.3056199]
[1755549018017,136.07,183.68,183.61,12.3056199]
[1755549018218,3.90530796,183.67,183.61,12.3056199]
[1755549018421,3.9064548,183.66,183.61,12.3056199]
[1755549018619,3.07,183.66,183.61,9.2456199]
[1755549018820,3.07,183.66,183.63,3.06]
[1755549019417,3.07,183.66,183.61,3.8019199]
[1755549019626,3.07,183.66,183.64,3.06]
[1755549020523,3.07,183.67,183.64,3.06]
[1755549021522,3.92210213,183.66,183.64,3.06]
[1755549021722,3.07,183.67,183.64,3.06]
[1755549021912,133.0,183.68,183.65,3.06]
[1755549022118,3.92208947,183.67,183.65,2.93]
[1755549022410,133.0,183.68,183.65,2.93]
[1755549022615,3.12,183.66,183.64,3.8019199]
[1755549023024,3.12,183.66,183.64,6.7319199]
[1755549025320,133.0,183.68,183.64,6.7319199]
[1755549025525,7.04346929,183.67,183.64,6.7319199]
[1755549025829,133.0,183.68,183.64,3.8019199]
[1755549026027,3.92348332,183.67,183.64,6.7319199]
[1755549026321,3.12,183.66,183.64,6.7319199]
[1755549027126,133.0,183.68,183.64,12.1748199]
[1755549027419,50.0,183.7,183.64,3.8019199]
[1755549027623,3.92330607,183.69,183.66,2.93]
[1755549027927,3.12,183.7,183.67,8.3719]
[1755549028117,3.92313716,183.69,183.67,8.3719]
[1755549028317,3.12,183.7,183.67,8.3719]
[1755549028513,3.92289525,183.69,183.67,8.3719]
[1755549028725,3.12,183.7,183.67,8.3719]
[1755549029024,7.04308064,183.69,183.67,2.93]
[1755549029220,3.12,183.68,183.66,5.4422]
[1755549029521,132.92,183.71,183.64,3.8019199]
[1755549029522,3.12,183.7,183.64,3.8019199]
[1755549029727,3.12,183.7,183.52,10.8926]
[1755549029728,3.12,183.68,183.58,2.93]
[1755549030028,3.12,183.66,183.61,5.4437]
[1755549030227,3.12,183.64,183.59,3.8019199]
[1755549030524,3.12,183.63,183.59,6.7319199]
[1755549030727,3.12,183.62,183.59,12.1761199]
[1755549030914,3.12,183.62,183.59,6.7319199]
[1755549031115,3.12,183.6,183.57,2.93]
[1755549031329,3.12,183.6,183.57,8.3749]
[1755549032129,3.12,183.6,183.57,2.93]
[1755549032327,3.12,183.63,183.53,6.7319199]
[1755549032525,3.12,183.61,183.53,6.7319199]
[1755549032828,3.12,183.59,183.53,2.93]
[1755549034431,3.12,183.59,183.53,8.3759]
[1755549034619,3.12,183.59,183.53,2.93]
[1755549035826,3.12,183.63,183.54,5.4458]
[1755549036024,3.12,183.61,183.55,3.8019199]
[1755549036222,3.92484305,183.6,183.55,3.8019199]
[1755549036528,7.04468446,183.59,183.52,3.8019199]
[1755549036721,3.12,183.59,183.53,2.93]
[1755549036929,3.12,183.64,183.56,2.93]
[1755549037116,3.92459075,183.63,183.58,3.8019199]
[1755549037323,3.92459075,183.62,183.59,2.93]
[1755549037524,3.12,183.63,183.59,8.3743]
[1755549037724,3.92430312,183.62,183.59,8.3743]
[1755549037926,3.12,183.63,183.59,8.3743]
[1755549038129,3.9243027,183.62,183.59,8.3743]
[1755549038428,3.12,183.63,183.6,5.444]
[1755549038623,3.12,183.63,183.6,8.374]
[1755549042331,3.12,183.63,183.61,5.4437]
[1755549042534,3.12,183.63,183.61,8.3737]
[1755549042832,132.92,183.65,183.63,2.93]
[1755549043033,53.12,183.68,183.64,6.7319199]
[1755549043334,7.04521906,183.67,183.64,6.7319199]
[1755549043526,3.12,183.67,183.64,6.7319199]
[1755549044427,3.12,183.66,183.64,3.8019199]
[1755549045232,50.0,183.68,183.64,6.7319199]
[1755549045438,7.0446025,183.67,183.64,6.7319199]
[1755549045640,3.12,183.67,183.64,6.7319199]
[1755549046238,3.12,183.67,183.64,12.1748199]
[1755549046443,3.12,183.67,183.64,6.7319199]
[1755549046943,3.12,183.66,183.63,12.1749199]
[1755549047639,3.12,183.66,183.64,2.93]
[1755549047844,53.12,183.68,183.64,5.4429]
[1755549048046,3.92462887,183.67,183.65,2.93]
[1755549048345,53.12,183.68,183.65,2.93]
[1755549048540,3.92458224,183.67,183.64,2.93]
[1755549048845,136.04,183.7,183.66,6.7319199]
[1755549049035,3.12,183.68,183.66,3.8019199]
[1755549049534,132.92,183.7,183.66,3.8019199]
[1755549049741,3.92389529,183.69,183.66,6.7319199]
[1755549049942,3.12,183.69,183.66,6.7319199]
[1755549050247,3.12,183.69,183.66,3.8019199]
[1755549050447,3.12,183.68,183.66,3.8019199]
[1755549050639,132.92,183.7,183.66,5.4422]
[1755549050839,7.04259986,183.69,183.66,12.1741199]
[1755549051138,3.12,183.69,183.66,12.1741199]
[1755549051842,3.12,183.69,183.67,5.4419]
[1755549052049,132.92,183.7,183.68,2.93]
[1755549052441,132.92,183.7,183.68,8.3716]
[1755549053654,132.92,183.7,183.68,2.93]
[1755549054454,2.88,183.71,183.68,2.93]
[1755549054746,6.80089616,183.7,183.67,5.4419]
[1755549054949,2.88,183.7,183.67,5.4419]
[1755549055152,2.88,183.71,183.66,3.8019199]
[1755549055345,3.92092789,183.7,183.66,3.8019199]
[1755549055546,2.88,183.68,183.66,3.8019199]
[1755549056447,50.0,183.72,183.66,12.3041199]
[1755549056653,50.0,183.72,183.67,3.06]
[1755549056654,2.88,183.7,183.67,3.06]
[1755549056948,50.0,183.72,183.68,3.06]
[1755549057148,3.91983748,183.71,183.68,3.06]
[1755549057453,2.88,183.7,183.67,5.4418]
[1755549057951,2.88,183.7,183.67,8.5018]
[1755549059052,50.0,183.72,183.66,3.8019199]
[1755549059247,2.88,183.68,183.66,3.8019199]
[1755549059450,2.88,183.67,183.66,3.8019199]
[1755549060154,50.0,183.72,183.66,3.8019199]
[1755549060349,2.88,183.7,183.56,3.06]
[1755549060657,2.88,183.68,183.58,6.8619199]
[1755549060845,2.88,183.68,183.52,10.8929]
[1755549060846,136.77864699,183.67,183.61,3.8019199]
[1755549061049,136.77864699,183.67,183.62,3.06]
[1755549061050,132.86,183.67,183.62,3.06]
[1755549061246,2.88,183.66,183.63,3.06]
[1755549061652,132.86,183.67,183.61,9.2455199]
[1755549061854,2.88,183.64,183.61,9.2455199]
[1755549062158,2.88,183.66,183.63,3.06]
[1755549063054,132.86,183.67,183.62,3.06]
[1755549063258,132.86,183.67,183.61,3.8019199]
[1755549063451,135.74,183.67,183.61,6.8619199]
[1755549063852,135.74,183.67,183.63,8.503]
[1755549064561,2.88,183.66,183.62,5.4433]
[1755549064765,2.88,183.65,183.62,5.4433]
[1755549064952,2.88,183.66,183.6,3.06]
[1755549065156,2.88,183.66,183.6,8.5039]
[1755549066264,3.92001518,183.65,183.6,3.06]
[1755549066462,2.88,183.66,183.59,9.2461199]
[1755549066663,2.88,183.64,183.59,9.2461199]
[1755549066966,2.88,183.61,183.59,3.8019199]
[1755549067155,2.88,183.64,183.59,6.8619199]
[1755549067361,132.86,183.67,183.59,6.8619199]
[1755549067566,2.88,183.62,183.59,6.8619199]
[1755549068065,132.86,183.67,183.59,12.3062199]
[1755549068362,2.88,183.62,183.59,12.3062199]
[1755549070562,2.88,183.62,183.59,9.2462199]
[1755549071160,132.86,183.67,183.59,9.2462199]
[1755549071359,2.88,183.65,183.54,3.06]
[1755549071563,2.88,183.63,183.53,3.8019199]
[1755549071764,57.7216051,183.64,183.53,3.8019199]
[1755549071765,2.88,183.61,183.53,3.8019199]
[1755549071959,132.86,183.6,183.53,3.8019199]
[1755549072266,2.88,183.59,183.53,3.8019199]
[1755549072454,2.88,183.59,183.51,3.06]
[1755549072768,2.88,183.59,183.51,8.5064]
[1755549072964,3.92045473,183.58,183.51,8.5064]
[1755549073267,2.88,183.57,183.51,8.5064]
[1755549073468,2.88,183.56,183.53,0.03604808]
[1755549073666,132.86,183.6,183.53,0.03604808]
[1755549073867,2.88,183.54,183.53,0.03604808]
[1755549079270,2.88,183.59,183.53,0.03604808]
[1755549079469,3.91089492,183.58,183.53,0.03604808]
[1755549079669,3.91089492,183.57,183.53,0.03604808]
[1755549079866,2.88,183.59,183.53,0.03604808]
[1755549080172,2.88,183.57,183.53,0.03604808]
[1755549080365,132.86,183.6,183.53,0.03604808]
[1755549080565,2.88,183.55,183.53,0.03604808]
[1755549082474,3.1,183.54,183.53,0.03604808]
[1755549084461,136.02,183.54,183.53,0.03604808]
[1755549087676,3.1,183.53,183.44,3.07]
[1755549087865,3.1,183.51,183.44,3.07]
[1755549088376,3.1,183.51,183.43,3.07]
[1755549088576,3.1,183.51,183.43,8.5189]
[1755549088875,0.03772929,183.49,183.43,3.07]
[1755549089072,132.97772929,183.49,183.43,3.07]
[1755549089479,136.07772929,183.49,183.45,3.07]
[1755549089773,136.07772929,183.49,183.42,6.8719199]
[1755549089774,3.1,183.48,183.42,6.8719199]
[1755549089969,3.1,183.48,183.4,3.07]
[1755549090274,3.1,183.48,183.38,3.07]
[1755549090478,3.1,183.48,183.38,8.5204]
[1755549090668,0.0410246,183.45,183.38,3.07]
[1755549090869,3.1410246,183.45,183.38,3.07]
[1755549091070,3.1410246,183.45,183.41,3.07]
[1755549091377,3.1,183.44,183.38,3.07]
[1755549091673,132.96,183.43,183.36,8.5209]
[1755549092081,3.1,183.42,183.36,3.07]
[1755549092272,3.1,183.42,183.32,3.07]
[1755549092474,0.04130822,183.41,183.32,3.07]
[1755549092669,0.04130822,183.41,183.34,3.8019199]
[1755549092874,0.04130822,183.41,183.35,3.07]
[1755549093078,3.1,183.42,183.35,3.07]
[1755549093279,3.1,183.42,183.33,3.07]
[1755549093472,0.03519292,183.4,183.33,3.07]
[1755549093774,3.13519292,183.4,183.33,8.522]
[1755549094281,3.13519292,183.4,183.34,5.4518]
[1755549094475,0.03519292,183.4,183.34,3.8019199]
[1755549094680,0.03519292,183.4,183.36,3.07]
[1755549095074,3.13519292,183.4,183.37,3.07]
[1755549095371,0.03519292,183.4,183.36,5.451]
[1755549095577,136.06,183.43,183.36,8.521]
[1755549095882,0.03796958,183.4,183.36,5.451]
[1755549096178,0.03796958,183.4,183.36,8.521]
[1755549096482,0.03796958,183.4,183.38,3.07]
[1755549096679,0.03796958,183.4,183.39,3.07]
[1755549096877,0.03796958,183.4,183.33,3.8019199]
[1755549097077,0.03796958,183.4,183.34,3.07]
[1755549098275,0.03796958,183.4,183.36,5.451]
[1755549098472,0.03796958,183.4,183.37,3.07]
[1755549098672,0.03796958,183.4,183.36,5.451]
[1755549098868,0.03796958,183.4,183.38,3.07]
[1755549099073,0.03796958,183.4,183.36,5.451]
[1755549099274,0.03796958,183.4,183.37,3.07]
[1755549100283,0.03796958,183.4,183.33,3.8019199]
[1755549100475,0.03796958,183.4,183.37,3.07]
[1755549100780,0.03796958,183.4,183.38,5.4506]
[1755549100982,136.06,183.43,183.39,3.07]
[1755549101183,0.03482512,183.41,183.39,3.07]
[1755549101886,0.03482512,183.41,183.4,3.07]
[1755549102188,3.13482512,183.41,183.37,3.07]
[1755549103476,0.03482512,183.41,183.36,3.8019199]
[1755549103774,0.03482512,183.41,183.39,3.07]
[1755549103976,0.03482512,183.41,183.39,5.4501]
[1755549104176,0.03482512,183.41,183.4,3.07]
[1755549106191,0.03482512,183.41,183.4,8.52]
[1755549106389,0.03482512,183.41,183.4,3.07]
[1755549106888,0.03482512,183.41,183.4,8.52]
[1755549107988,133.08,183.47,183.39,3.8019199]
[1755549108187,133.08,183.47,183.44,3.07]
[1755549108382,136.18,183.47,183.44,3.07]
[1755549109190,3.1,183.46,183.42,3.8019199]
[1755549109484,133.08,183.47,183.43,3.07]
[1755549109686,133.08,183.47,183.44,3.07]
[1755549109892,136.18,183.47,183.44,3.07]
[1755549110288,133.08,183.47,183.45,3.07]
[1755549110493,133.08,183.47,183.46,3.07]
[1755549110693,3.1,183.5,183.46,3.07]
[1755549110892,3.1,183.5,183.43,3.07]
[1755549111095,136.2,183.53,183.47,5.4477]
[1755549111301,3.89731543,183.52,183.47,5.4477]
[1755549111593,136.2,183.53,183.46,5.4481]
[1755549111797,3.1,183.51,183.41,3.8019199]
[1755549111995,3.89858099,183.5,183.42,3.07]
[1755549112190,3.1,183.51,183.42,3.07]
[1755549112397,3.89913921,183.5,183.42,3.07]
[1755549112691,3.1,183.51,183.42,3.07]
[1755549112893,2.96,183.49,183.42,3.07]
[1755549113292,3.8019199,183.52,183.42,3.07]
[1755549113293,2.96,183.48,183.42,3.07]
[1755549113895,2.96,183.48,183.42,3.06]
[1755549114098,2.96,183.51,183.42,3.06]
[1755549114294,3.90270223,183.5,183.45,5.4485]
[1755549114592,133.1,183.53,183.46,3.06]
[1755549114796,6.86515691,183.52,183.46,3.06]
[1755549114991,2.96,183.5,183.46,8.5082]
[1755549115194,2.96,183.5,183.44,3.8019199]
[1755549115398,2.96,183.5,183.46,5.448]
[1755549115697,2.96,183.48,183.44,6.8619199]
[1755549116591,2.96,183.48,183.45,3.06]
[1755549117198,2.96,183.52,183.44,3.8019199]
[1755549117393,2.96,183.5,183.44,3.8019199]
[1755549117591,2.96,183.48,183.44,6.8619199]
[1755549117791,2.96,183.48,183.45,3.06]
[1755549117998,133.1,183.53,183.44,3.8019199]
[1755549118196,2.96,183.51,183.42,3.06]
[1755549118396,2.96,183.49,183.39,3.06]
[1755549118698,2.96,183.47,183.4,5.4497]
[1755549118902,2.96,183.45,183.39,3.06]
[1755549119199,2.96,183.45,183.39,8.5101]
[1755549121800,2.96,183.45,183.4,5.4499]
[1755549121996,133.08,183.47,183.43,3.06]
[1755549122192,133.08,183.47,183.44,3.06]
[1755549122693,133.08,183.47,183.44,3.8019199]
[1755549122900,2.96,183.49,183.46,3.06]
[1755549123102,136.06,183.52,183.46,3.06]
[1755549123296,3.91724701,183.51,183.46,3.06]
[1755549123496,2.96,183.48,183.44,6.8619199]
[1755549123702,2.96,183.48,183.45,3.06]
[1755549124003,136.06,183.52,183.46,3.06]
[1755549124192,3.91794536,183.51,183.44,3.8019199]
[1755549124403,2.96,183.51,183.47,3.06]
[1755549124596,3.91877819,183.5,183.45,3.06]
[1755549124808,2.96,183.51,183.45,3.06]
[1755549125098,2.96,183.51,183.44,3.8019199]
[1755549125099,3.91877819,183.5,183.44,3.8019199]
[1755549125300,133.1,183.52,183.44,3.8019199]
[1755549125500,2.96,183.47,183.44,3.8019199]
[1755549125702,2.96,183.47,183.44,6.8619199]
[1755549125906,50.0,183.51,183.44,6.8619199]
[1755549126109,6.87999213,183.5,183.44,6.8619199]
[1755549126299,2.96,183.5,183.44,12.3107199]
[1755549126604,2.96,183.5,183.44,6.8619199]
[1755549126804,2.96,183.5,183.45,5.4483]
[1755549127001,2.96,183.49,183.45,5.4483]
[1755549127309,2.96,183.49,183.45,8.5083]
[1755549127509,2.96,183.5,183.44,3.8019199]
[1755549128705,2.96,183.5,183.44,9.2505199]
[1755549129602,50.0,183.51,183.44,9.2505199]
[1755549129603,2.96,183.49,183.45,8.5085]
[1755549130509,2.96,183.49,183.46,3.06]
[1755549131703,50.0,183.51,183.49,3.06]
[1755549132007,133.1,183.52,183.5,3.06]
[1755549134411,50.0,183.54,183.5,8.507]
[1755549134610,50.0,183.54,183.51,3.06]
[1755549134806,52.96,183.54,183.51,3.06]
[1755549136810,50.0,183.54,183.49,8.5071]
[1755549137012,2.96,183.53,183.49,8.5071]
[1755549137212,2.96,183.53,183.5,3.06]
[1755549138010,50.0,183.54,183.51,3.06]
[1755549138712,50.0,183.54,183.49,5.4471]
[1755549138914,2.96,183.52,183.49,5.4471]
[1755549139416,2.96,183.52,183.49,8.5071]
[1755549139616,50.0,183.54,183.49,5.4471]
[1755549139816,52.96,183.54,183.5,3.06]
[1755549140811,50.0,183.54,183.5,3.06]
[1755549141111,2.96,183.52,183.49,3.06]
[1755549141610,52.96,183.54,183.49,5.4473]
[1755549141916,52.96,183.54,183.5,3.06]
[1755549142217,52.96,183.54,183.5,8.347]
[1755549142723,50.0,183.54,183.51,2.9]
[1755549142911,50.0,183.54,183.53,2.9]
[1755549143109,133.06,183.56,183.53,2.9]
[1755549143417,133.06,183.56,183.51,12.1485199]
[1755549143619,3.02,183.55,183.51,12.1485199]
[1755549144717,3.02,183.54,183.51,12.1485199]
[1755549144918,3.02,183.55,183.51,3.8019199]
[1755549145117,3.02,183.54,183.51,3.8019199]
[1755549145312,3.02,183.55,183.51,3.8019199]
[1755549145514,3.02,183.54,183.51,3.8019199]
[1755549147318,3.02,183.53,183.49,8.3471]
[1755549147514,3.02,183.53,183.49,2.9]
[1755549149117,3.02,183.55,183.48,3.8019199]
[1755549149320,3.93124759,183.54,183.45,6.7019199]
[1755549149517,3.02,183.52,183.45,6.7019199]
[1755549149718,3.02,183.52,183.45,12.1502199]
[1755549149921,3.02,183.52,183.45,6.7019199]
[1755549152326,3.9350763,183.51,183.45,3.8019199]
[1755549152523,3.02,183.52,183.47,2.9]
[1755549152725,3.93507473,183.51,183.45,3.8019199]
[1755549152922,3.02,183.54,183.41,2.9]
[1755549153222,53.8019199,183.55,183.42,3.8019199]
[1755549153223,3.02,183.52,183.42,3.8019199]
[1755549153425,3.02,183.5,183.42,3.8019199]
[1755549153728,3.02,183.48,183.41,2.9]
[1755549153927,3.02,183.46,183.39,3.8019199]
[1755549154727,3.02,183.44,183.38,2.9]
[1755549155827,3.02,183.44,183.36,9.2529199]
[1755549156231,3.02,183.44,183.36,3.8019199]
[1755549156431,3.02,183.44,183.36,6.7019199]
[1755549156730,3.02,183.44,183.37,5.4508]
[1755549158829,3.02,183.44,183.36,12.1530199]
[1755549159539,3.02,183.44,183.37,5.4508]
[1755549160743,3.02,183.44,183.38,5.4505]
[1755549160941,3.02,183.44,183.38,8.3505]
[1755549161245,3.02,183.47,183.4,5.4498]
[1755549161539,3.93184189,183.46,183.4,8.3498]
[1755549161739,3.02,183.47,183.4,2.9]
[1755549162339,3.02,183.47,183.41,5.4497]
[1755549163141,50.0,183.48,183.43,2.9]
[1755549163442,53.02,183.52,183.46,2.9]
[1755549163641,6.95008303,183.51,183.45,3.8019199]
[1755549163832,3.02,183.51,183.45,3.8019199]
[1755549164236,3.93017963,183.5,183.42,3.8019199]
[1755549164443,6.95017963,183.49,183.42,3.8019199]
[1755549164740,3.93017963,183.48,183.42,3.8019199]
[1755549165547,3.02,183.47,183.42,3.8019199]
[1755549165747,3.02,183.51,183.41,6.7019199]